bitfinex-derivatives/quotes_BTCF0:USTF0_20210705
["timestamp","ask_amount","ask_price","bid_price","bid_amount"]
[1625512597051,0.79651088,34069.0,34068.0,1.24931604]
[1625512597497,0.79651088,34069.0,34068.0,1.0087406]
[1625512597597,0.79651088,34069.0,34068.0,0.9237406]
[1625512597798,0.79651088,34069.0,34066.0,1.0095143]
[1625512597899,0.79651088,34069.0,34066.0,0.99676677]
[1625512598199,0.79651088,34069.0,34065.0,1.18437544]
[1625512598801,0.24057544,34068.0,34065.0,1.18437544]
[1625512598898,0.29957544,34068.0,34065.0,1.18437544]
[1625512599099,0.35857544,34068.0,34065.0,1.18437544]
[1625512599246,0.29957544,34068.0,34065.0,1.18437544]
[1625512599947,0.0893,34067.0,34065.0,1.18437544]
[1625512600047,0.1483,34067.0,34065.0,1.18437544]
[1625512600898,0.2073,34067.0,34065.0,1.18437544]
[1625512602301,0.2073,34067.0,34065.0,1.03937544]
[1625512603554,0.1483,34067.0,34065.0,1.03937544]
[1625512605057,0.1483,34067.0,34065.0,1.03537544]
[1625512605160,0.2073,34067.0,34065.0,0.7948]
[1625512605556,0.2073,34067.0,34065.0,0.7734]
[1625512605657,0.2073,34067.0,34065.0,0.7708]
[1625512606208,0.1483,34067.0,34065.0,0.7708]
[1625512608112,0.059,34067.0,34065.0,0.7708]
[1625512608215,0.48115088,34068.0,34065.0,0.7708]
[1625512608465,0.48115088,34068.0,34066.0,0.00347831]
[1625512608630,0.48115088,34068.0,34066.0,0.06247831]
[1625512608914,0.24057544,34068.0,34067.0,0.24057544]
[1625512609013,0.24057544,34068.0,34067.0,0.56712346]
[1625512609113,0.24057544,34068.0,34067.0,0.68512346]
[1625512609513,0.24057544,34073.0,34067.0,0.68512346]
[1625512609615,0.24057544,34077.0,34067.0,0.68512346]
[1625512609717,0.24057544,34077.0,34067.0,0.74212346]
[1625512609815,0.29957544,34077.0,34067.0,0.74212346]
[1625512610064,0.24057544,34077.0,34068.0,0.00347767]
[1625512610164,0.24057544,34077.0,34068.0,0.06247767]
[1625512610266,0.24057544,34077.0,34069.0,1.17353575]
[1625512610466,0.24057544,34077.0,34069.0,1.23253575]
[1625512610566,0.24057544,34077.0,34069.0,1.29501349]
[1625512610768,0.24057544,34077.0,34071.0,1.17306845]
[1625512610868,0.24057544,34077.0,34076.0,0.48115088]
[1625512610967,0.24057544,34077.0,34076.0,0.79874088]
[1625512611371,0.24057544,34077.0,34076.0,0.80221859]
[1625512611771,0.24057544,34077.0,34076.0,0.86121859]
[1625512612071,0.24057544,34084.0,34076.0,0.86121859]
[1625512612171,0.9218,34085.0,34076.0,0.86121859]
[1625512612274,0.24057544,34088.0,34076.0,0.97721859]
[1625512612472,0.24057544,34088.0,34077.0,0.00347733]
[1625512612572,0.24057544,34088.0,34077.0,0.06247733]
[1625512612771,0.24057544,34088.0,34077.0,0.12147733]
[1625512612874,0.24057544,34088.0,34087.0,0.48115088]
[1625512613074,0.24057544,34088.0,34087.0,0.70987088]
[1625512613171,0.24057544,34088.0,34087.0,0.76887088]
[1625512614028,0.24057544,34088.0,34087.0,0.70987088]
[1625512614611,0.24057544,34088.0,34087.0,0.48115088]
[1625512614724,0.29957544,34088.0,34087.0,0.48115088]
[1625512614826,0.24057544,34088.0,34087.0,0.48115088]
[1625512616482,0.29957544,34088.0,34087.0,0.48115088]
[1625512618283,0.63963544,34088.0,34087.0,0.48115088]
[1625512618851,0.58063544,34088.0,34087.0,0.48115088]
[1625512619033,0.63963544,34088.0,34087.0,0.48115088]
[1625512619340,0.78593544,34088.0,34087.0,0.48115088]
[1625512619585,0.69863544,34088.0,34087.0,0.48115088]
[1625512620737,0.78623544,34088.0,34087.0,0.48115088]
[1625512620939,0.72723544,34088.0,34087.0,0.48115088]
[1625512621040,0.63963544,34088.0,34087.0,0.48115088]
[1625512621139,0.24057544,34088.0,34087.0,0.48115088]
[1625512630413,0.24057544,34088.0,34087.0,0.54015088]
[1625512630511,0.24057544,34088.0,34087.0,0.48115088]
[1625512631364,0.24057544,34088.0,34087.0,0.54015088]
[1625512631463,0.24057544,34088.0,34087.0,0.48115088]
[1625512631563,0.24057544,34088.0,34087.0,0.54015088]
[1625512631764,0.24057544,34088.0,34087.0,0.48115088]
[1625512633519,0.24057544,34088.0,34087.0,0.54015088]
[1625512634469,0.24057544,34088.0,34087.0,1.71856704]
[1625512634571,0.24057544,34088.0,34087.0,2.72863804]
[1625512634668,0.24057544,34088.0,34087.0,2.66963804]
[1625512635021,0.24057544,34088.0,34087.0,1.49122188]
[1625512635671,0.24057544,34088.0,34087.0,1.55022188]
[1625512636021,3.6978,34091.0,34087.0,1.55022188]
[1625512636126,3.6978,34091.0,34087.0,1.84391188]
[1625512636236,0.059,34091.0,34087.0,1.84391188]
[1625512636333,1.03616899,34095.0,34087.0,1.84391188]
[1625512636426,1.03616899,34095.0,34087.0,1.90291188]
[1625512636586,1.03614188,34097.0,34090.0,1.00972941]
[1625512636841,1.03614188,34097.0,34090.0,1.12772941]
[1625512636926,1.2766329,34100.0,34093.0,1.00886679]
[1625512637030,1.2766329,34100.0,34093.0,1.12686679]
[1625512637125,1.2766329,34100.0,34099.0,0.48115088]
[1625512637226,1.2766329,34100.0,34099.0,0.79195088]
[1625512637427,0.24057544,34100.0,34099.0,0.79195088]
[1625512637628,1.03602606,34101.0,34099.0,0.79195088]
[1625512638229,1.03602606,34101.0,34099.0,0.85095088]
[1625512638330,1.03602606,34101.0,34099.0,0.79195088]
[1625512638729,1.03602606,34101.0,34099.0,0.85095088]
[1625512638830,1.03553603,34103.0,34099.0,0.85095088]
[1625512639080,1.03553603,34103.0,34100.0,0.24057544]
[1625512639179,1.03553603,34103.0,34100.0,0.29957544]
[1625512639380,1.03553603,34103.0,34100.0,0.24057544]
[1625512639581,1.03501699,34104.0,34100.0,0.24057544]
[1625512639681,1.03501699,34104.0,34100.0,0.29957544]
[1625512639781,1.09401699,34104.0,34100.0,0.29957544]
[1625512639881,1.03501699,34104.0,34100.0,0.29957544]
[1625512639988,1.05850807,34106.0,34100.0,0.35857544]
[1625512640083,1.03500696,34106.0,34100.0,0.35857544]
[1625512640180,1.03500696,34106.0,34101.0,0.00347552]
[1625512640280,1.03500696,34106.0,34101.0,0.06247552]
[1625512640381,1.03500696,34106.0,34101.0,0.12147552]
[1625512640695,1.20747938,34107.0,34101.0,0.12147552]
[1625512640696,0.24057544,34112.0,34102.0,0.00347547]
[1625512640785,0.24057544,34112.0,34102.0,0.06047547]
[1625512640883,0.24057544,34112.0,34102.0,0.17847547]
[1625512641135,0.24057544,34112.0,34111.0,0.48115088]
[1625512641234,0.24057544,34112.0,34111.0,0.79391088]
[1625512641335,0.24057544,34112.0,34111.0,0.85291088]
[1625512641435,0.24057544,34112.0,34111.0,0.91191088]
[1625512641535,0.24057544,34112.0,34111.0,0.85291088]
[1625512641938,0.58527585,34112.0,34111.0,0.85291088]
[1625512642740,0.24057544,34112.0,34111.0,0.85291088]
[1625512645544,0.24057544,34112.0,34111.0,0.79391088]
[1625512645851,0.24057544,34112.0,34111.0,0.48115088]
[1625512646247,0.32927544,34112.0,34111.0,0.48115088]
[1625512646349,0.67328639,34112.0,34111.0,0.48115088]
[1625512646596,0.91894639,34112.0,34111.0,0.48115088]
[1625512646697,0.97794639,34112.0,34111.0,0.48115088]
[1625512646997,0.63393544,34112.0,34111.0,0.48115088]
[1625512648162,0.63393544,34112.0,34111.0,0.44175088]
[1625512648270,0.69293544,34112.0,34111.0,0.36555088]
[1625512648356,0.69293544,34112.0,34111.0,0.30065088]
[1625512648906,2.06814779,34112.0,34111.0,0.30065088]
[1625512649257,2.06814779,34112.0,34111.0,0.29485088]
[1625512649356,2.06814779,34112.0,34111.0,0.05427544]
[1625512649456,2.06814779,34112.0,34106.0,0.24057544]
[1625512650410,1.37496448,34111.0,34106.0,0.24057544]
[1625512650609,1.49296448,34111.0,34106.0,0.24057544]
[1625512651159,0.24057544,34107.0,34106.0,0.24057544]
[1625512651261,0.35857544,34107.0,34106.0,0.24057544]
[1625512651362,0.35857544,34107.0,34106.0,0.23597544]
[1625512651561,0.29957544,34107.0,34106.0,0.23597544]
[1625512652163,0.64340279,34107.0,34106.0,0.23597544]
[1625512652863,0.70240279,34107.0,34106.0,0.23597544]
[1625512653566,0.35857544,34107.0,34106.0,0.23597544]
[1625512653665,0.35857544,34107.0,34100.0,0.24057544]
[1625512654520,0.34386757,34101.0,34100.0,0.24057544]
[1625512654616,0.60516757,34101.0,34100.0,0.24057544]
[1625512654717,0.72316757,34101.0,34100.0,0.24057544]
[1625512655018,0.3793,34101.0,34100.0,0.24057544]
[1625512655217,0.61987544,34101.0,34100.0,0.24057544]
[1625512655318,0.61987544,34101.0,34100.0,0.18257544]
[1625512656470,1.30761808,34101.0,34100.0,0.18257544]
[1625512660330,1.24861808,34101.0,34100.0,0.18257544]
[1625512660928,1.18961808,34101.0,34100.0,0.18257544]
[1625512661029,0.84612422,34101.0,34100.0,0.18257544]
[1625512661379,0.90512422,34101.0,34100.0,0.18257544]
[1625512661480,0.56087544,34101.0,34100.0,0.18257544]
[1625512661580,0.29957544,34101.0,34100.0,0.18257544]
[1625512661681,0.24057544,34101.0,34100.0,0.18257544]
[1625512661782,0.29957544,34101.0,34100.0,0.18257544]
[1625512661882,0.6438719,34101.0,34100.0,0.18257544]
[1625512661982,0.5848719,34101.0,34100.0,0.18257544]
[1625512662133,0.6438719,34101.0,34100.0,0.18257544]
[1625512662333,0.7313719,34101.0,34100.0,0.18257544]
[1625512662735,0.6723719,34101.0,34100.0,0.18257544]
[1625512662835,0.7313719,34101.0,34100.0,0.18257544]
[1625512662937,0.29957544,34101.0,34100.0,0.18257544]
[1625512663536,0.24057544,34101.0,34100.0,0.18257544]
[1625512663636,0.29957544,34101.0,34100.0,0.18257544]
[1625512663838,0.89307616,34101.0,34100.0,0.18257544]
[1625512663936,0.92237616,34101.0,34100.0,0.18257544]
[1625512664638,0.98137616,34101.0,34100.0,0.18257544]
[1625512664737,0.92237616,34101.0,34100.0,0.18257544]
[1625512665188,0.83407616,34101.0,34100.0,0.18257544]
[1625512665287,0.89307616,34101.0,34100.0,0.18257544]
[1625512665390,0.83407616,34101.0,34100.0,0.18257544]
[1625512665490,0.48956544,34101.0,34100.0,0.18257544]
[1625512665688,0.54856544,34101.0,34100.0,0.18257544]
[1625512665839,1.23792448,34101.0,34100.0,0.18257544]
[1625512666140,1.29692448,34101.0,34100.0,0.18257544]
[1625512667395,2.50443068,34101.0,34100.0,0.18257544]
[1625512667846,1.29692448,34101.0,34100.0,0.18257544]
[1625512668146,2.59317674,34101.0,34100.0,0.18257544]
[1625512668447,3.99057219,34101.0,34100.0,0.18257544]
[1625512670101,5.02687654,34101.0,34100.0,0.18257544]
[1625512670351,5.01094597,34101.0,34100.0,0.18257544]
[1625512671107,5.02687658,34101.0,34100.0,0.18257544]
[1625512673919,6.58223259,34101.0,34100.0,0.18257544]
[1625512674215,5.02687658,34101.0,34100.0,0.18257544]
[1625512678223,6.52353998,34101.0,34100.0,0.18257544]
[1625512678324,6.58253998,34101.0,34100.0,0.18257544]
[1625512678675,5.02687658,34101.0,34100.0,0.18257544]
[1625512679126,6.58267904,34101.0,34100.0,0.18257544]
[1625512679422,5.02687658,34101.0,34100.0,0.18257544]
[1625512680173,5.02687658,34101.0,34095.0,0.057]
[1625512680378,1.72926735,34096.0,34095.0,0.22543542]
[1625512680476,1.72926735,34096.0,34095.0,0.16843542]
[1625512680875,1.74520389,34096.0,34095.0,0.17191183]
[1625512681579,1.74520389,34096.0,34095.0,0.41248727]
[1625512681580,1.98577933,34096.0,34095.0,0.41248727]
[1625512682228,1.98577933,34096.0,34095.0,0.74936501]
[1625512682478,0.9482535,34096.0,34095.0,0.74936501]
[1625512683078,0.9482535,34096.0,34095.0,0.58092959]
[1625512683481,0.9482535,34096.0,34095.0,0.91756939]
[1625512683482,0.60251149,34096.0,34095.0,0.91756939]
[1625512683577,0.36193605,34096.0,34095.0,0.97656939]
[1625512683677,1.210566,34100.0,34095.0,0.97656939]
[1625512683797,1.210566,34100.0,34095.0,2.27961774]
[1625512683879,1.38366163,34102.0,34095.0,2.27961774]
[1625512683983,1.38366163,34102.0,34095.0,2.33861774]
[1625512684082,1.38366163,34102.0,34096.0,0.00347604]
[1625512684282,4.9849,34103.0,34098.0,1.34478416]
[1625512684380,4.9849,34103.0,34099.0,0.057]
[1625512684584,4.9849,34103.0,34099.0,0.11947572]
[1625512684683,4.9849,34103.0,34100.0,1.34363958]
[1625512684781,4.9849,34103.0,34100.0,1.40411521]
[1625512684883,4.9849,34103.0,34100.0,1.46311521]
[1625512684984,4.9849,34103.0,34101.0,1.34317021]
[1625512685087,4.9849,34103.0,34101.0,1.40364572]
[1625512685186,4.9849,34103.0,34101.0,1.46264572]
[1625512685286,4.4846,34103.0,34102.0,1.3424741]
[1625512685387,4.4846,34103.0,34102.0,1.57585958]
[1625512685485,4.4846,34103.0,34102.0,1.69385958]
[1625512685585,4.4846,34103.0,34102.0,2.17501046]
[1625512685690,3.9841,34103.0,34102.0,2.17501046]
[1625512685786,3.8375,34103.0,34102.0,2.17501046]
[1625512685935,3.8375,34103.0,34102.0,2.67847093]
[1625512686036,0.51878375,34108.0,34102.0,2.67847093]
[1625512686135,0.51878375,34108.0,34103.0,0.057]
[1625512686235,0.51878375,34108.0,34103.0,0.175]
[1625512686336,0.51877685,34109.0,34106.0,0.50320863]
[1625512686435,0.51877685,34109.0,34106.0,0.56220863]
[1625512686535,0.51877685,34109.0,34106.0,0.62120863]
[1625512686635,0.51877685,34109.0,34106.0,0.624684]
[1625512687093,0.51875182,34110.0,34106.0,0.624684]
[1625512687437,0.51862095,34111.0,34106.0,0.624684]
[1625512687587,0.51862095,34111.0,34106.0,0.86525944]
[1625512689191,0.75922658,34112.0,34106.0,0.86525944]
[1625512689441,0.75922658,34112.0,34106.0,0.86178407]
[1625512689543,0.75922658,34112.0,34106.0,0.80278407]
[1625512689544,0.51849198,34111.0,34106.0,0.80278407]
[1625512689795,0.51849198,34111.0,34106.0,0.86178407]
[1625512690043,0.51851368,34110.0,34106.0,0.86178407]
[1625512690544,0.51851368,34110.0,34106.0,0.80278407]
[1625512690746,0.51852674,34109.0,34106.0,0.80278407]
[1625512691148,0.51853654,34108.0,34106.0,0.80278407]
[1625512691598,0.7591391,34107.0,34106.0,0.29957544]
[1625512692400,0.24057544,34107.0,34106.0,0.80268403]
[1625512692599,0.24057544,34107.0,34106.0,0.86168403]
[1625512693004,0.24057544,34107.0,34106.0,0.80268403]
[1625512694104,0.24057544,34107.0,34106.0,0.86168403]
[1625512694206,0.24057544,34107.0,34106.0,0.80268403]
[1625512695960,0.75911554,34107.0,34106.0,0.29957544]
[1625512696210,0.75911554,34107.0,34106.0,0.80281488]
[1625512696460,0.75911554,34107.0,34106.0,0.29957544]
[1625512699669,0.24057544,34107.0,34106.0,0.29957544]
[1625512699767,0.24057544,34107.0,34106.0,0.50528544]
[1625512700019,0.24057544,34107.0,34106.0,1.00837042]
[1625512700819,0.24057544,34107.0,34106.0,1.06737042]
[1625512700920,0.24057544,34107.0,34106.0,1.00837042]
[1625512702019,0.24057544,34107.0,34106.0,1.06737042]
[1625512704423,0.24057544,34107.0,34106.0,1.00837042]
[1625512705174,0.24057544,34107.0,34106.0,0.94937042]
[1625512705674,0.24057544,34107.0,34106.0,1.00837042]
[1625512706274,0.24057544,34107.0,34106.0,0.80266042]
[1625512706676,0.759174,34107.0,34106.0,0.24057544]
[1625512707030,0.818174,34107.0,34106.0,0.24057544]
[1625512707129,0.759174,34107.0,34106.0,0.24057544]
[1625512707228,0.818174,34107.0,34106.0,0.24057544]
[1625512708483,2.04397327,34107.0,34106.0,0.24057544]
[1625512708884,1.98497327,34107.0,34106.0,0.24057544]
[1625512709288,1.9691218,34107.0,34106.0,0.29957544]
[1625512709643,0.759174,34107.0,34106.0,0.29957544]
[1625512710591,0.77502427,34107.0,34106.0,0.30305102]
[1625512712392,0.759174,34107.0,34106.0,0.30305102]
[1625512712545,0.24057544,34107.0,34106.0,0.30305102]
[1625512712644,0.24057544,34107.0,34106.0,0.80588734]
[1625512712745,0.25642532,34107.0,34106.0,0.80588734]
[1625512712945,0.24057544,34107.0,34106.0,0.80588734]
[1625512713244,0.25642527,34107.0,34106.0,0.80588734]
[1625512713646,0.25642527,34107.0,34106.0,0.74688734]
[1625512713746,0.25642527,34107.0,34106.0,0.24405102]
[1625512713947,0.25642527,34107.0,34106.0,0.30305102]
[1625512714550,0.25642527,34107.0,34106.0,0.80589031]
[1625512716004,0.25642527,34107.0,34106.0,0.30305102]
[1625512716406,0.77491259,34107.0,34106.0,0.30305102]
[1625512716508,0.77491259,34107.0,34106.0,0.24405102]
[1625512718161,1.81183742,34107.0,34106.0,0.24405102]
[1625512719017,1.87083742,34107.0,34106.0,0.24405102]
[1625512719323,3.08067761,34107.0,34106.0,0.24057544]
[1625512719566,3.08067761,34107.0,34106.0,0.24405097]
[1625512720125,3.08067761,34107.0,34106.0,0.24057544]
[1625512722474,4.46364611,34107.0,34106.0,0.24057544]
[1625512723926,4.52264611,34107.0,34106.0,0.24057544]
[1625512728286,4.46364611,34107.0,34106.0,0.24057544]
[1625512729037,4.52264611,34107.0,34106.0,0.24057544]
[1625512729138,4.46364611,34107.0,34106.0,0.24057544]
[1625512729892,4.40464611,34107.0,34106.0,0.24057544]
[1625512730140,4.40464611,34107.0,34106.0,0.29957544]
[1625512730442,3.02167761,34107.0,34106.0,0.29957544]
[1625512730710,0.75906276,34107.0,34106.0,0.80808008]
[1625512731603,0.75906276,34107.0,34106.0,0.86708008]
[1625512731701,0.75906276,34107.0,34106.0,1.87709866]
[1625512732143,0.24057544,34107.0,34106.0,3.05476628]
[1625512732696,0.24057544,34107.0,34106.0,4.40000732]
[1625512733160,0.51890378,34111.0,34106.0,4.40000732]
[1625512733274,0.51890378,34111.0,34107.0,0.057]
[1625512733445,0.51890378,34111.0,34107.0,0.17847435]
[1625512733643,0.51890378,34111.0,34107.0,5.24047435]
[1625512733776,0.24057544,34112.0,34110.0,2.68853963]
[1625512733844,0.24057544,34112.0,34110.0,3.05477963]
[1625512733946,0.24057544,34112.0,34111.0,0.24057544]
[1625512734045,0.24057544,34112.0,34111.0,0.29957544]
[1625512734146,0.24057544,34112.0,34111.0,0.35857544]
[1625512734249,0.24057544,34112.0,34111.0,3.05049119]
[1625512734550,0.51891652,34114.0,34111.0,3.05049119]
[1625512734645,0.51891652,34114.0,34111.0,3.10749119]
[1625512734765,0.51889767,34115.0,34111.0,3.10749119]
[1625512734998,0.51889767,34115.0,34112.0,0.00347417]
[1625512735197,0.51889767,34115.0,34112.0,0.12147417]
[1625512735298,0.51889767,34115.0,34112.0,0.17847417]
[1625512735399,5.18147943,34117.0,34114.0,2.68643019]
[1625512735497,5.18147943,34117.0,34114.0,2.74343019]
[1625512735597,5.18147943,34117.0,34114.0,2.86143019]
[1625512735948,5.18147943,34117.0,34116.0,0.48115088]
[1625512736048,4.6626,34117.0,34116.0,1.04408293]
[1625512736149,4.6626,34117.0,34116.0,1.10308293]
[1625512736299,4.6626,34117.0,34116.0,1.04408293]
[1625512736500,6.21903501,34117.0,34116.0,1.04408293]
[1625512736999,6.21903501,34117.0,34116.0,1.10308293]
[1625512737303,6.21903501,34117.0,34116.0,1.04408293]
[1625512738652,6.21903501,34117.0,34116.0,0.54015088]
[1625512739555,6.21903501,34117.0,34116.0,1.04511628]
[1625512740055,7.42990086,34117.0,34116.0,0.54015088]
[1625512740408,7.42990086,34117.0,34116.0,0.48115088]
[1625512740606,7.42990086,34117.0,34116.0,0.54015088]
[1625512741209,7.42990086,34117.0,34116.0,1.04561033]
[1625512741508,6.21903501,34117.0,34116.0,1.04561033]
[1625512741959,7.43026772,34117.0,34116.0,1.04561033]
[1625512742460,7.43026772,34117.0,34116.0,0.54015088]
[1625512742567,7.43026772,34117.0,34116.0,0.87805088]
[1625512742665,7.43026772,34117.0,34116.0,0.93705088]
[1625512742916,6.21903501,34117.0,34116.0,1.44256087]
[1625512743117,6.21903501,34117.0,34116.0,1.38356087]
[1625512743419,6.21903501,34117.0,34116.0,1.44256087]
[1625512743519,6.21903501,34117.0,34116.0,1.38356087]
[1625512743618,6.21903501,34117.0,34116.0,1.44256087]
[1625512743720,6.21903501,34117.0,34116.0,1.38356087]
[1625512743819,6.91129513,34117.0,34116.0,3.06842592]
[1625512743919,6.91129513,34117.0,34116.0,3.12742592]
[1625512744368,6.91129513,34117.0,34116.0,3.06842592]
[1625512744470,6.91129513,34117.0,34116.0,3.12742592]
[1625512744670,6.91129513,34117.0,34116.0,3.06842592]
[1625512744870,6.91129513,34117.0,34116.0,3.12742592]
[1625512744972,5.87372942,34117.0,34116.0,3.06842592]
[1625512745422,6.91172802,34117.0,34116.0,3.06842592]
[1625512745673,6.91172802,34117.0,34116.0,2.05750689]
[1625512745772,6.91172802,34117.0,34116.0,2.11650689]
[1625512745874,6.91172802,34117.0,34116.0,2.05750689]
[1625512747376,6.91172802,34117.0,34116.0,3.07305707]
[1625512747826,5.87372942,34117.0,34116.0,3.07305707]
[1625512748179,6.91152781,34117.0,34116.0,3.07305707]
[1625512748529,5.87372942,34117.0,34116.0,3.07305707]
[1625512749733,6.91134796,34117.0,34116.0,2.05750689]
[1625512750083,6.91134796,34117.0,34116.0,0.87805088]
[1625512750183,6.91134796,34117.0,34116.0,0.54015088]
[1625512750641,6.91134796,34117.0,34116.0,0.87039088]
[1625512750738,5.87372942,34117.0,34116.0,3.07133751]
[1625512750985,5.35486012,34117.0,34116.0,3.07133751]
[1625512751438,4.6626,34117.0,34116.0,3.07133751]
[1625512751688,4.6626,34117.0,34116.0,3.01233751]
[1625512752340,4.6626,34117.0,34116.0,3.07133751]
[1625512755294,4.6626,34117.0,34116.0,3.01233751]
[1625512755494,4.7216,34117.0,34116.0,2.95333751]
[1625512755845,6.96873778,34117.0,34116.0,0.75239088]
[1625512755945,6.96873778,34117.0,34116.0,0.48115088]
[1625512756347,8.17868453,34117.0,34116.0,0.48115088]
[1625512756797,8.11968453,34117.0,34116.0,0.48115088]
[1625512757899,6.90973778,34117.0,34116.0,0.48115088]
[1625512759204,6.92558093,34117.0,34116.0,0.48115088]
[1625512759304,8.13554027,34117.0,34116.0,0.48115088]
[1625512760557,8.13554027,34117.0,34116.0,0.54015088]
[1625512760756,8.11969712,34117.0,34116.0,0.54015088]
[1625512760855,6.90973778,34117.0,34116.0,0.54362498]
[1625512761055,6.9255736,34117.0,34116.0,0.54362498]
[1625512761355,6.9255736,34117.0,34116.0,0.48462498]
[1625512761557,6.9845736,34117.0,34116.0,0.48462498]
[1625512761958,6.9255736,34117.0,34116.0,0.48462498]
[1625512762259,6.9845736,34117.0,34116.0,0.48462498]
[1625512763510,8.19434855,34117.0,34116.0,0.48462498]
[1625512764312,6.9845736,34117.0,34116.0,0.48462498]
[1625512764512,6.9255736,34117.0,34116.0,0.54362498]
[1625512765020,5.94749955,34117.0,34116.0,0.48462498]
[1625512765118,5.88849955,34117.0,34116.0,0.48462498]
[1625512765371,6.92545907,34117.0,34116.0,0.48462498]
[1625512766219,5.88849955,34117.0,34116.0,0.48462498]
[1625512767271,5.94749955,34117.0,34116.0,0.48462498]
[1625512767372,4.73743582,34117.0,34116.0,0.48462498]
[1625512767975,6.98432819,34117.0,34116.0,0.48462498]
[1625512768622,6.98432819,34117.0,34116.0,0.24057544]
[1625512768759,7.25043819,34117.0,34116.0,0.24057544]
[1625512768829,9.84295612,34117.0,34116.0,0.24057544]
[1625512768922,9.8777031,34117.0,34116.0,0.24057544]
[1625512769274,11.4334188,34117.0,34116.0,0.24057544]
[1625512769381,11.39867182,34117.0,34116.0,0.24057544]
[1625512769925,11.39867182,34117.0,34116.0,0.22907544]
[1625512770274,11.43341973,34117.0,34116.0,0.22907544]
[1625512770375,11.67399517,34117.0,34116.0,0.22907544]
[1625512770584,11.63924726,34117.0,34116.0,0.22907544]
[1625512771127,11.63924726,34117.0,34111.0,0.24057544]
[1625512771526,3.45765831,34112.0,34111.0,0.24057544]
[1625512771628,3.54635831,34112.0,34111.0,0.24057544]
[1625512771728,3.60535831,34112.0,34111.0,0.24057544]
[1625512771878,3.62117644,34112.0,34111.0,0.24057544]
[1625512772430,3.86175188,34112.0,34111.0,0.24057544]
[1625512774285,5.24474247,34112.0,34111.0,0.24057544]
[1625512776239,5.24474247,34112.0,34111.0,0.19727544]
[1625512776339,5.24474247,34112.0,34107.0,0.08452295]
[1625512776539,0.24057544,34108.0,34107.0,0.32509839]
[1625512776641,5.02457544,34108.0,34107.0,0.32509839]
[1625512776739,5.39434544,34108.0,34107.0,0.32509839]
[1625512776840,5.33534544,34108.0,34107.0,0.32509839]
[1625512776990,5.39434544,34108.0,34107.0,0.26579839]
[1625512777394,7.64186572,34108.0,34107.0,0.24057544]
[1625512777591,7.71668872,34108.0,34106.0,1.18280591]
[1625512777842,0.01582362,34107.0,34106.0,1.18280591]
[1625512777947,0.13382362,34107.0,34106.0,1.18280591]
[1625512778042,0.13382362,34107.0,34103.0,1.18280591]
[1625512778043,0.13382362,34107.0,34103.0,0.50745576]
[1625512778395,0.118,34107.0,34103.0,0.50745576]
[1625512778492,0.24057544,34104.0,34103.0,0.50745576]
[1625512778592,0.29957544,34104.0,34103.0,0.50745576]
[1625512778693,2.60635445,34104.0,34102.0,0.98893615]
[1625512779094,2.69425445,34104.0,34102.0,0.98893615]
[1625512779593,2.69425445,34104.0,34102.0,0.48115088]
[1625512779594,2.24750949,34103.0,34102.0,0.48115088]
[1625512779692,2.30650949,34103.0,34102.0,0.48115088]
[1625512780544,2.30650949,34103.0,34102.0,0.24057544]
[1625512782198,3.5165444,34103.0,34102.0,0.24057544]
[1625512783449,2.30650949,34103.0,34102.0,0.24057544]
[1625512783699,2.30650949,34103.0,34100.0,0.50784311]
[1625512783802,0.0882,34102.0,34100.0,0.50784311]
[1625512783901,0.1472,34102.0,34100.0,0.50784311]
[1625512784300,0.1472,34102.0,34099.0,0.50809691]
[1625512784301,2.24731553,34101.0,34099.0,0.50809691]
[1625512784401,2.55806553,34101.0,34099.0,0.50809691]
[1625512784500,2.61706553,34101.0,34099.0,0.50809691]
[1625512784601,1.64748152,34101.0,34100.0,0.24057544]
[1625512785451,2.85763927,34101.0,34100.0,0.24057544]
[1625512785953,1.82048319,34101.0,34100.0,0.24057544]
[1625512786352,1.82048319,34101.0,34100.0,0.74908566]
[1625512786452,1.50973319,34101.0,34100.0,0.74908566]
[1625512786903,1.45073319,34101.0,34100.0,0.74908566]
[1625512787305,0.32867544,34101.0,34100.0,2.44558081]
[1625512787408,0.24057544,34101.0,34100.0,2.44558081]
[1625512789413,0.24057544,34101.0,34100.0,3.63242953]
[1625512790516,0.29957544,34101.0,34100.0,3.63242953]
[1625512790719,0.24057544,34101.0,34100.0,3.63242953]
[1625512791374,0.29957544,34101.0,34100.0,3.63242953]
[1625512791482,5.35607544,34101.0,34100.0,2.44558081]
[1625512791569,5.29707544,34101.0,34100.0,2.44558081]
[1625512791669,5.20967544,34101.0,34100.0,2.44558081]
[1625512792375,5.20967544,34101.0,34100.0,3.63282786]
[1625512794077,5.20967544,34101.0,34100.0,3.69182786]
[1625512794178,0.24057544,34101.0,34100.0,3.90040786]
[1625512794330,0.24057544,34101.0,34100.0,3.96288294]
[1625512794528,0.24057544,34101.0,34100.0,5.31914133]
[1625512794627,0.24057544,34105.0,34100.0,5.31914133]
[1625512794734,0.24057544,34105.0,34101.0,0.057]
[1625512794827,0.24057544,34105.0,34101.0,0.116]
[1625512794929,0.24057544,34105.0,34104.0,3.21461228]
[1625512795029,0.24057544,34105.0,34104.0,4.73732336]
[1625512795128,0.24057544,34105.0,34104.0,4.79632336]
[1625512795278,0.24057544,34105.0,34104.0,3.4428024]
[1625512795377,0.24057544,34105.0,34104.0,3.44627714]
[1625512795579,5.27107544,34105.0,34104.0,3.44627714]
[1625512795677,5.27107544,34105.0,34104.0,4.80062574]
[1625512796328,5.27107544,34105.0,34104.0,4.85962574]
[1625512796430,5.27107544,34105.0,34104.0,4.80062574]
[1625512796627,5.27107544,34105.0,34104.0,5.04120118]
[1625512797128,5.27107544,34105.0,34104.0,5.10020118]
[1625512797781,5.27107544,34105.0,34104.0,6.62286324]
[1625512798678,5.27107544,34105.0,34104.0,5.10020118]
[1625512799085,5.27107544,34105.0,34104.0,6.62278297]
[1625512799429,5.27107544,34105.0,34104.0,6.56378297]
[1625512799828,5.27107544,34105.0,34104.0,6.62278297]
[1625512799932,5.27107544,34105.0,34104.0,6.56378297]
[1625512800029,5.27107544,34105.0,34104.0,5.04120118]
[1625512800128,5.27107544,34105.0,34104.0,5.10020118]
[1625512800730,5.27107544,34105.0,34104.0,6.62260248]
[1625512803888,5.27107544,34105.0,34104.0,6.56360248]
[1625512804438,5.27107544,34105.0,34104.0,5.04120118]
[1625512805889,5.27107544,34105.0,34104.0,4.98220118]
[1625512806841,5.27107544,34105.0,34104.0,5.04120118]
[1625512807292,5.35927544,34105.0,34104.0,5.04120118]
[1625512807494,5.35927544,34105.0,34104.0,5.43029118]
[1625512807605,5.27107544,34105.0,34104.0,5.43029118]
[1625512808195,5.27107544,34105.0,34104.0,5.37129118]
[1625512808294,5.27107544,34105.0,34104.0,5.43029118]
[1625512809248,5.27107544,34105.0,34104.0,5.37129118]
[1625512809346,5.27107544,34105.0,34104.0,5.43029118]
[1625512809897,5.27107544,34105.0,34104.0,5.37129118]
[1625512810097,5.27107544,34105.0,34104.0,6.95213169]
[1625512814906,5.27107544,34105.0,34104.0,6.89313169]
[1625512815258,5.27107544,34105.0,34104.0,6.95213169]